{"text_format":"3","workbook":"xlsx","n_sheets":1,"sheets":["Exhibit D Bid Form"],"not_rendered":{"defined_names":1},"read":"whole","date_system":"1900"}

{"sheet":"Exhibit D Bid Form","index":0,"n_rows":26,"n_cols":10,"rows_kept":26,"merged":[[0,0,0,9],[1,0,1,9],[2,0,2,9],[3,0,3,9],[4,0,4,9],[22,0,22,9],[23,0,23,9],[24,1,24,9],[25,1,25,9]]}
["Exhibit D"]
["Bid Table"]
["Orange Street Parking Lot Resurfacing Project #1227"]
["REVISED 4.30.2021"]
[]
[" No. ","Description ","Quantity ",null,"Unit Price","Unit","Cost ",null,null,"Cost "]
[1,"Removal and disposal of existing asphalt pavement, grading, and compaction ",1,"x",null,"LS",{"$f":"C7*E7","v":0},null,"=",{"$f":"IF(E7=0,\"   \",G7)","v":"   "}]
[2,"2” Asphalt Surface Course, SCDOT Type B",1,"x",null,"LS",{"$f":"C8*E8","v":0},null,"=",{"$f":"IF(E8=0,\"   \",G8)","v":"   "}]
[3,"Paint standard parking spaces at 45 - degree angle",42,"x",null,"EA",0,null,"=","   "]
[4,"Paint handicap parking space at 45 -  degree angle",2,"x",null,"EA",0,null,"=","   "]
[5,"Paint for traffic signals and light pole pedestals. ",1,"x",null,"LS",0,null,"=","   "]
[6,"Furnish and install precast concrete wheel stops ",14,"x",null,"EA",0,null,"=","   "]
[7,"Remove plastic curb and replace with 4x10 P.T. timber curb",1,"x",null,"LS",0,null,"=","   "]
[8,"Remove and dispose knee-high brick wall",1,"x",null,"LS",0,null,"=","   "]
[{"$nulls":5},"TOTAL BID AMOUNT:",{"$nulls":3},{"$f":"SUM(J7:J14)","v":0}]
[null,"Alternates",{"$nulls":7},"   "]
[1,"Removal and disposal of existing asphalt pavement, excavation, grading, and compaction ",1,"x",null,"LS",{"$f":"C17*E17","v":0},null,"=",{"$f":"IF(E17=0,\"   \",G17)","v":"   "}]
[2,"Pervious concrete: 6\" deep ",1,"x",null,"LS",0,null,"=","   "]
[3,"Concrete curb: 6\" wide x 12\" deep with GABC",1,"x",null,"LS",0,null,"=","   "]
[4,"#57 Granite stone aggregate",1,"x",null,"LS",0,null,"=","   "]
[5,"Non-woven geotextile fabric",1,"x",null,"LS",0,null,"=","   "]
[{"$nulls":5},"TOTAL ALTERNATE BID AMOUNT:",{"$nulls":3},{"$f":"SUM(J17:J21)","v":0}]
[]
[]
[null,"The above prices include all mobilization, labor, material, and equipment, overhead, profit, taxes, insurance, permit fees, etc. to complete the work."]
[null,"The City of Georgetown reserves the right to add or reduce the scope of work and material quantities as the budget and schedule allows. \n"]